fUSD/lending_fUSD_20240919
["ID","MTS","AMOUNT","RATE_DAILY","PERIOD"]
[338555867,1726732259134,-500.0,0.00014158,2]
[338555868,1726732259144,-1233.42,0.00014158,2]
[338555869,1726732259153,-500.0,0.00014158,2]
[338555870,1726732259162,-526.21,0.00014158,2]
[338555871,1726732259171,-619.95,0.00014158,2]
[338555872,1726732259183,-500.0,0.00014158,2]
[338555873,1726732259192,-500.0,0.00014158,2]
[338555874,1726732259202,-1504.17,0.00014158,2]
[338555875,1726732259212,-500.0,0.00014158,2]
[338555876,1726732259221,-500.0,0.00014158,2]
[338555877,1726732259231,-501.18645085,0.00014158,2]
[338555878,1726732259240,-1372.29,0.00014158,2]
[338555879,1726732259250,-3332.6,0.00014158,2]
[338555880,1726732259259,-1755.32,0.00014158,2]
[338555881,1726732259269,-500.0,0.00014158,2]
[338555882,1726732259279,-2237.52,0.00014158,2]
[338555883,1726732259290,-500.0,0.00014158,2]
[338555884,1726732259300,-500.0,0.00014158,2]
[338555885,1726732259309,-500.0,0.00014158,2]
[338555886,1726732259319,-500.0,0.00014158,2]
[338555887,1726732259328,-500.0,0.00014158,2]
[338555888,1726732259337,-1400.09,0.00014158,2]
[338555889,1726732259347,-2058.1,0.00014158,2]
[338555890,1726732259356,-1344.07,0.00014158,2]
[338555891,1726732259366,-568.11,0.00014158,2]
[338555892,1726732259375,-725.32,0.00014158,2]
[338555893,1726732259385,-1266.88,0.00014158,2]
[338555894,1726732259395,-607.02,0.00014158,2]
[338555895,1726732259405,-773.5,0.00014158,2]
[338555896,1726732259415,-2144.96,0.00014158,2]
[338555897,1726732259424,-500.0,0.00014158,2]
[338555898,1726732259433,-707.1,0.00014158,2]
[338555899,1726732259443,-1791.75,0.00014158,2]
[338555900,1726732259453,-527.530774,0.00014158,2]
[338555901,1726732259463,-527.530774,0.00014158,2]
[338555902,1726732259472,-610.73,0.00014158,2]
[338555903,1726732259481,-1226.59,0.00014158,2]
[338555904,1726732259491,-500.0,0.00014158,2]
[338555905,1726732259501,-1499.27,0.00014158,2]
[338555906,1726732259510,-1218.65,0.00014158,2]
[338555907,1726732259519,-500.0,0.00014158,2]
[338555908,1726732259529,-1490.06,0.00014158,2]
[338555909,1726732259541,-981.47,0.00014158,2]
[338555910,1726732259550,-500.0,0.00014158,2]
[338555911,1726732259559,-689.16,0.00014158,2]
[338555912,1726732259569,-500.0,0.00014158,2]
[338555913,1726732259579,-500.0,0.00014158,2]
[338555914,1726732259588,-4015.97,0.00014158,2]
[338555915,1726732259597,-500.0,0.00014158,2]
[338555916,1726732259606,-500.0,0.00014158,2]
[338555917,1726732259616,-500.0,0.00014158,2]
[338555918,1726732259626,-500.0,0.00014158,2]
[338555919,1726732259636,-534.73,0.00014158,2]
[338555920,1726732259646,-1873.31,0.00014158,2]
[338555921,1726732259655,-1649.35,0.00014158,2]
[338555922,1726732259665,-2518.22,0.00014158,2]
[338555923,1726732259675,-951.55,0.00014158,2]
[338555924,1726732259795,-961.38,0.00014158,2]
[338555925,1726732259807,-838.34,0.00014158,2]
[338555926,1726732259816,-500.0,0.00014158,2]
[338555927,1726732259826,-1102.89,0.00014158,2]
[338555928,1726732259838,-2656.04,0.00014158,2]
[338555929,1726732259847,-538.09,0.00014158,2]
[338555930,1726732259856,-614.44,0.00014158,2]
[338555931,1726732259866,-500.0,0.00014158,2]
[338555932,1726732259875,-363.02691283,0.00014158,2]
[338555933,1726732259885,-1240.77,0.00014158,2]
[338555934,1726732259895,-500.0,0.00014158,2]
[338555935,1726732259904,-500.0,0.00014158,2]
[338555936,1726732259913,-886.35,0.00014158,2]
[338555937,1726732259922,-953.58,0.00014158,2]
[338555938,1726732259932,-661.25,0.00014158,2]
[338555939,1726732259942,-514.5,0.00014158,2]
[338555940,1726732259951,-631.07,0.00014158,2]
[338555941,1726732259961,-500.0,0.00014158,2]
[338555942,1726732259971,-716.29,0.00014158,2]
[338555943,1726732259981,-500.0,0.00014158,2]
[338555944,1726732259990,-500.0,0.00014158,2]
[338555945,1726732259999,-500.0,0.00014158,2]
[338555946,1726732260009,-1113.9,0.00014158,2]
[338555947,1726732260018,-1295.39,0.00014158,2]
[338555948,1726732260027,-500.0,0.00014158,2]
[338555949,1726732260036,-500.0,0.00014158,2]
[338555950,1726732260047,-500.0,0.00014158,2]
[338555951,1726732260057,-686.32,0.00014158,2]
[338555952,1726732260067,-500.0,0.00014158,2]
[338555953,1726732260077,-1117.17,0.00014158,2]
[338555954,1726732260087,-500.0,0.00014158,2]
[338555955,1726732260097,-1504.63,0.00014158,2]
[338555956,1726732260106,-1973.3,0.00014158,2]
[338555957,1726732260116,-500.0,0.00014158,2]
[338555958,1726732260126,-500.0,0.00014158,2]
[338555959,1726732260136,-3400.98670077,0.00014163,2]
[338555960,1726732260146,-357.94,0.00014164,2]
[338555961,1726732260155,-357.94,0.00014164,2]
[338555962,1726732260165,-357.94,0.00014164,2]
[338555963,1726732260175,-357.94,0.00014164,2]
[338555964,1726732260185,-357.94,0.00014164,2]
[338555965,1726732260194,-357.94,0.00014164,2]
[338555966,1726732260204,-357.94,0.00014164,2]
[338555967,1726732260213,-357.94,0.00014164,2]
[338555968,1726732260224,-357.94,0.00014164,2]
[338555969,1726732260233,-357.94,0.00014164,2]
[338555970,1726732260242,-357.94,0.00014164,2]
[338555971,1726732260252,-357.94,0.00014164,2]
[338555972,1726732260261,-357.94,0.00014164,2]
[338555973,1726732260271,-357.94,0.00014164,2]
[338555974,1726732260280,-357.94,0.00014164,2]
[338555975,1726732260289,-357.94,0.00014164,2]
[338555976,1726732260300,-357.94,0.00014164,2]
[338555977,1726732260309,-357.94,0.00014164,2]
[338555978,1726732260319,-357.94,0.00014164,2]
[338555979,1726732260328,-357.94,0.00014164,2]
[338555980,1726732260337,-352.98,0.00014164,2]
[338555981,1726732260347,-357.94,0.00014164,2]
[338555982,1726732260356,-357.94,0.00014164,2]
[338555983,1726732260366,-206.0,0.0001418,2]
[338555984,1726732260376,-3307.6,0.00014191,14]
[338555985,1726732260385,-150.0,0.00014202,2]
[338555986,1726732260395,-150.0,0.00014205,2]
[338555987,1726732260404,-150.0,0.00014207,2]
[338555988,1726732260414,-150.0,0.00014209,2]
[338555989,1726732260423,-150.0,0.00014212,2]
[338555990,1726732260432,-150.0,0.00014212,2]
[338555991,1726732260442,-150.0,0.00014213,2]
[338555992,1726732260451,-150.0,0.00014214,2]
[338555993,1726732260461,-150.0,0.00014215,2]
[338555994,1726732260470,-150.0,0.00014215,2]
[338555995,1726732260479,-150.0,0.00014223,2]
[338555996,1726732260489,-150.0,0.00014227,2]
[338555997,1726732260498,-150.0,0.00014228,2]
[338555998,1726732260508,-150.0,0.00014228,2]
[338555999,1726732260518,-150.0,0.0001423,2]
[338556000,1726732260528,-150.0,0.00014232,2]
[338556001,1726732260537,-150.0,0.00014233,2]
[338556002,1726732260549,-150.0,0.00014235,2]
[338556003,1726732260558,-150.0,0.0001424,2]
[338556004,1726732260568,-150.0,0.0001424,2]
[338556005,1726732260578,-150.0,0.00014243,2]
[338556006,1726732260587,-150.0,0.00014249,2]
[338556007,1726732260598,-150.0,0.00014254,2]
[338556008,1726732260607,-150.0,0.00014257,2]
[338556009,1726732260617,-150.0,0.00014257,2]
[338556010,1726732260627,-150.0,0.00014257,2]
[338556011,1726732260636,-500.0,0.00014259,2]
[338556012,1726732260645,-500.0,0.00014259,2]
[338556013,1726732260655,-500.0,0.00014259,2]
[338556014,1726732260665,-500.0,0.00014259,2]
[338556015,1726732260674,-500.0,0.00014259,2]
[338556016,1726732260684,-500.0,0.00014259,2]
[338556017,1726732260694,-500.0,0.00014259,2]
[338556018,1726732260704,-511.73,0.00014259,2]
[338556019,1726732260714,-556.86,0.00014259,2]
[338556020,1726732260724,-500.0,0.00014259,2]
[338556021,1726732260733,-500.0,0.00014259,2]
[338556022,1726732260742,-500.0,0.00014259,2]
[338556023,1726732260752,-500.0,0.00014259,2]
[338556024,1726732260761,-733.16,0.00014259,2]
[338556025,1726732260770,-500.0,0.00014259,2]
[338556026,1726732260780,-500.0,0.00014259,2]
[338556027,1726732260791,-513.56,0.00014259,2]
[338556028,1726732260800,-500.0,0.00014259,2]
[338556029,1726732260810,-500.0,0.00014259,2]
[338556030,1726732260819,-500.0,0.00014259,2]
[338556031,1726732260828,-500.0,0.00014259,2]
[338556032,1726732260841,-500.0,0.00014259,2]
[338556033,1726732260851,-500.0,0.00014259,2]
[338556034,1726732260860,-500.0,0.00014259,2]
[338556035,1726732260869,-500.0,0.00014259,2]
[338556036,1726732260879,-500.0,0.00014259,2]
[338556037,1726732260889,-500.0,0.00014259,2]
[338556038,1726732260899,-500.0,0.00014259,2]
[338556039,1726732260911,-500.0,0.00014259,2]
[338556040,1726732260920,-591.17,0.00014259,2]
[338556041,1726732260930,-342.09208401,0.00014259,2]
[338556042,1726732260941,-500.0,0.00014259,2]
[338556043,1726732260951,-500.0,0.00014259,2]
[338556044,1726732260962,-500.0,0.00014259,2]
[338556045,1726732260973,-500.0,0.00014259,2]
[338556046,1726732260982,-500.0,0.00014259,2]
[338556047,1726732260992,-696.61,0.00014259,2]
[338556048,1726732261002,-500.0,0.00014259,2]
[338556049,1726732261011,-500.0,0.00014259,2]
[338556050,1726732261020,-539.18,0.00014259,2]
[338556051,1726732261031,-500.0,0.00014259,2]
[338556052,1726732261041,-500.0,0.00014259,2]
[338556053,1726732261057,-500.0,0.00014259,2]
[338556054,1726732261067,-717.13,0.00014259,2]
[338556055,1726732261076,-701.24,0.00014259,2]
[338556056,1726732261085,-561.6690746,0.00014259,2]
[338556057,1726732261095,-544.0,0.00014259,2]
[338556058,1726732261104,-941.85,0.00014259,2]
[338556059,1726732261113,-500.0,0.00014259,2]
[338556060,1726732261122,-500.0,0.00014259,2]
[338556061,1726732261131,-500.0,0.00014259,2]
[338556062,1726732261141,-500.0,0.00014259,2]
[338556063,1726732261150,-568.83142953,0.00014259,2]
[338556064,1726732261159,-500.0,0.00014259,2]
[338556065,1726732261168,-700.0,0.00014259,2]
[338556066,1726732261178,-500.0,0.00014259,2]
[338556067,1726732261188,-500.0,0.00014259,2]
[338556068,1726732261197,-504.44,0.00014259,2]
[338556069,1726732261206,-500.0,0.00014259,2]
[338556070,1726732261215,-500.0,0.00014259,2]
[338556071,1726732261226,-561.64,0.00014259,2]
[338556072,1726732261235,-500.0,0.00014259,2]
[338556073,1726732261244,-969.61,0.00014259,2]
[338556074,1726732261254,-858.02,0.00014259,2]
[338556075,1726732261263,-3307.6,0.00014259,14]
[338556076,1726732261273,-500.0,0.00014259,2]
[338556077,1726732261282,-896.77,0.00014259,2]
[338556078,1726732261293,-500.0,0.00014259,2]
[338556079,1726732261303,-500.0,0.00014259,2]
[338556080,1726732261312,-674.18,0.00014259,2]
[338556081,1726732261321,-500.0,0.00014259,2]
[338556082,1726732261330,-643.3,0.00014259,2]
[338556083,1726732261340,-500.0,0.00014259,2]
[338556084,1726732261349,-993.4,0.00014259,2]
[338556085,1726732261359,-500.0,0.00014259,2]
[338556086,1726732261368,-500.0,0.00014259,2]
[338556087,1726732261377,-1258.28,0.00014259,2]
[338556088,1726732261386,-677.15,0.00014259,2]
[338556089,1726732261396,-1044.68,0.00014259,2]
[338556090,1726732261405,-705.18,0.00014259,2]
[338556091,1726732261414,-500.0,0.00014259,2]
[338556092,1726732261424,-500.0,0.00014259,2]
[338556093,1726732261433,-812.59,0.00014259,2]
[338556094,1726732261443,-500.0,0.00014259,2]
[338556095,1726732261452,-593.93,0.00014259,2]
[338556096,1726732261462,-500.0,0.00014259,2]
[338556097,1726732261471,-500.0,0.00014259,2]
[338556098,1726732261481,-582.2,0.00014259,2]
[338556099,1726732261491,-819.35,0.00014259,2]
[338556100,1726732261503,-500.0,0.00014259,2]
[338556101,1726732261513,-577.63185688,0.00014259,2]
[338556102,1726732261522,-500.0,0.00014259,2]
[338556103,1726732261532,-565.94,0.00014259,2]
[338556104,1726732261544,-500.0,0.00014259,2]
[338556105,1726732261553,-500.0,0.00014259,2]
[338556106,1726732261564,-1613.08,0.00014259,2]
[338556107,1726732261575,-536.25,0.00014259,2]
[338556108,1726732261586,-725.28,0.00014259,2]
[338556109,1726732261596,-500.0,0.00014259,2]
[338556110,1726732261606,-500.0,0.00014259,2]
[338556111,1726732261615,-500.0,0.00014259,2]
[338556112,1726732261624,-500.0,0.00014259,2]
[338556113,1726732261633,-500.0,0.00014259,2]
[338556114,1726732261642,-855.03,0.00014259,2]
[338556115,1726732261651,-500.0,0.00014259,2]
[338556116,1726732261661,-500.0,0.00014259,2]
[338556117,1726732261670,-500.0,0.00014259,2]
[338556118,1726732261679,-1132.22,0.00014259,2]
[338556119,1726732261688,-500.0,0.00014259,2]
[338556120,1726732261697,-500.0,0.00014259,2]
[338556121,1726732261707,-816.95,0.00014259,2]
[338556122,1726732261717,-500.0,0.00014259,2]
[338556123,1726732261726,-500.0,0.00014259,2]
[338556124,1726732261736,-500.0,0.00014259,2]
[338556125,1726732261745,-500.0,0.00014259,2]
[338556126,1726732261755,-500.0,0.00014259,2]
[338556127,1726732261764,-807.02,0.00014259,2]
[338556128,1726732261774,-500.0,0.00014259,2]
[338556129,1726732261783,-500.0,0.00014259,2]
[338556130,1726732261793,-728.77,0.00014259,2]
[338556131,1726732261804,-539.85,0.00014259,2]
[338556132,1726732261814,-500.0,0.00014259,2]
[338556133,1726732261823,-500.0,0.00014259,2]
[338556134,1726732261833,-572.27,0.00014259,2]
[338556135,1726732261845,-783.65,0.00014259,2]
[338556136,1726732261854,-500.0,0.00014259,2]
[338556137,1726732261864,-500.0,0.00014259,2]
[338556138,1726732261873,-962.12,0.00014259,2]
[338556139,1726732261882,-500.0,0.00014259,2]
[338556140,1726732261891,-500.0,0.00014259,2]
[338556141,1726732261900,-500.0,0.00014259,2]
[338556142,1726732261910,-545.57,0.00014259,2]
[338556143,1726732262177,-500.0,0.00014259,2]
[338556144,1726732262189,-500.0,0.00014259,2]
[338556145,1726732262200,-150.0,0.00014259,2]
[338556146,1726732262211,-910.48,0.00014259,2]
[338556147,1726732262221,-979.92,0.00014259,2]
[338556148,1726732262232,-1433.4,0.00014259,2]
[338556149,1726732262241,-500.0,0.00014259,2]
[338556150,1726732262251,-500.0,0.00014259,2]
[338556151,1726732262261,-638.34,0.00014259,2]
[338556152,1726732262270,-665.78,0.00014259,2]
[338556153,1726732262279,-500.0,0.00014259,2]
[338556154,1726732262289,-500.0,0.00014259,2]
[338556155,1726732262299,-500.0,0.00014259,2]
[338556156,1726732262308,-500.0,0.00014259,2]
[338556157,1726732262317,-503.9,0.00014259,2]
[338556158,1726732262326,-500.0,0.00014259,2]
[338556159,1726732262335,-522.83,0.00014259,2]
[338556160,1726732262345,-363.01349881,0.00014259,2]
[338556161,1726732262354,-500.0,0.00014259,2]
[338556162,1726732262363,-500.0,0.00014259,2]
[338556163,1726732262373,-500.0,0.00014259,2]
[338556164,1726732262384,-500.0,0.00014259,2]
[338556165,1726732262394,-549.04,0.00014259,2]
[338556166,1726732262403,-500.0,0.00014259,2]
[338556167,1726732262412,-1979.64,0.00014259,2]
[338556168,1726732262423,-500.0,0.00014259,2]
[338556169,1726732262433,-500.0,0.00014259,2]
[338556170,1726732262442,-500.0,0.00014259,2]
[338556171,1726732262454,-653.65,0.00014259,2]
[338556172,1726732262466,-500.0,0.00014259,2]
[338556173,1726732262476,-500.0,0.00014259,2]
[338556174,1726732262486,-849.09,0.00014259,2]
[338556175,1726732262495,-666.58,0.00014259,2]
[338556176,1726732262505,-500.0,0.00014259,2]
[338556177,1726732262515,-500.0,0.00014259,2]
[338556178,1726732262524,-500.0,0.00014259,2]
[338556179,1726732262534,-544.2,0.00014259,2]
[338556180,1726732262544,-500.0,0.00014259,2]
[338556181,1726732262553,-500.0,0.00014259,2]
[338556182,1726732262563,-500.0,0.00014259,2]
[338556183,1726732262572,-500.0,0.00014259,2]
[338556184,1726732262580,-500.0,0.00014259,2]
[338556185,1726732262590,-500.0,0.00014259,2]
[338556186,1726732262599,-500.0,0.00014259,2]
[338556187,1726732262609,-500.0,0.00014259,2]
[338556188,1726732262619,-500.0,0.00014259,2]
[338556189,1726732262628,-500.0,0.00014259,2]
[338556190,1726732262637,-500.0,0.00014259,2]
[338556191,1726732262647,-500.0,0.00014259,2]
[338556192,1726732262656,-500.0,0.00014259,2]
[338556193,1726732262665,-500.0,0.00014259,2]
[338556194,1726732262675,-500.0,0.00014259,2]
[338556195,1726732262684,-500.0,0.00014259,2]
[338556196,1726732262695,-500.0,0.00014259,2]
[338556197,1726732262704,-500.0,0.00014259,2]
[338556198,1726732262714,-584.02623435,0.00014259,2]
[338556199,1726732262724,-500.0,0.00014259,2]
[338556200,1726732262734,-615.25,0.00014259,2]
[338556201,1726732262743,-3307.6,0.00014261,14]
[338556202,1726732262752,-150.0,0.00014261,2]
[338556203,1726732262762,-150.0,0.00014261,2]
[338556204,1726732262772,-150.0,0.00014266,2]
[338556205,1726732262781,-339.07182377,0.00014268,2]
[338556206,1726732262792,-150.0,0.0001427,2]
[338556207,1726732262801,-150.0,0.00014271,2]
[338556208,1726732262811,-150.0,0.00014276,2]
[338556209,1726732262820,-188.0,0.00014278,2]
[338556210,1726732262830,-150.0,0.00014278,2]
[338556211,1726732262842,-153.63575951,0.00014279,2]
[338556212,1726732262851,-150.0,0.00014286,2]
[338556213,1726732262860,-150.0,0.00014287,2]
[338556214,1726732262870,-159.53480383,0.00014291,2]
[338556215,1726732262879,-150.0,0.00014292,2]
[338556216,1726732262889,-150.0,0.00014294,2]
[338556217,1726732262898,-150.0,0.00014296,2]
[338556218,1726732262908,-150.0,0.000143,2]
[338556219,1726732262919,-150.0,0.00014306,2]
[338556220,1726732262929,-150.0,0.00014307,2]
[338556221,1726732262939,-150.0,0.00014312,2]
[338556222,1726732262948,-150.0,0.00014313,2]
[338556223,1726732262958,-150.0,0.00014318,2]
[338556224,1726732262967,-150.0,0.00014321,2]
[338556225,1726732262977,-150.0,0.00014322,2]
[338556226,1726732262986,-150.0,0.00014324,2]
[338556227,1726732262996,-902.80318338,0.00014332,2]
[338556228,1726732263006,-945.2062616,0.00014332,2]
[338556229,1726732263017,-150.0,0.00014333,2]
[338556230,1726732263027,-150.0,0.00014335,2]
[338556231,1726732263038,-150.0,0.00014335,2]
[338556232,1726732263050,-150.0,0.00014335,2]
[338556233,1726732263059,-150.0,0.00014335,2]
[338556234,1726732263069,-150.0,0.00014338,2]
[338556235,1726732263079,-150.0,0.00014339,2]
[338556236,1726732263090,-206.0,0.0001434,2]
[338556237,1726732263105,-150.0,0.00014347,2]
[338556238,1726732263115,-150.0,0.00014348,2]
[338556239,1726732263126,-150.0,0.00014352,2]
[338556240,1726732263136,-150.0,0.00014358,2]
[338556241,1726732263147,-150.0,0.00014359,2]
[338556242,1726732263156,-150.0,0.0001436,2]
[338556243,1726732263166,-150.0,0.00014364,2]
[338556244,1726732263177,-150.0,0.00014368,2]
[338556245,1726732263187,-150.0,0.00014368,2]
[338556246,1726732263206,-150.0,0.00014373,2]
[338556247,1726732263216,-150.0,0.00014376,2]
[338556248,1726732263226,-150.0,0.00014378,2]
[338556249,1726732263236,-152.0,0.00014379,3]
[338556250,1726732263246,-670.24,0.00014384,2]
[338556251,1726732263257,-150.0,0.00014385,2]
[338556252,1726732263267,-150.0,0.0001439,2]
[338556253,1726732263278,-150.0,0.00014394,2]
[338556254,1726732263288,-150.0,0.00014395,2]
[338556255,1726732263300,-150.0,0.00014396,2]
[338556256,1726732263311,-900.0,0.000144,5]
[338556257,1726732263321,-3400.98670077,0.00014409,2]
[338556258,1726732263331,-150.0,0.00014414,2]
[338556259,1726732263342,-150.0,0.00014415,2]
[338556260,1726732263352,-150.0,0.00014416,2]
[338556261,1726732263362,-150.0,0.00014416,2]
[338556262,1726732263372,-150.0,0.00014417,2]
[338556263,1726732263381,-150.0,0.00014423,2]
[338556264,1726732263391,-150.0,0.00014428,2]
[338556265,1726732263401,-500.0,0.00014432,2]
[338556266,1726732263410,-673.44,0.00014432,2]
[338556267,1726732263420,-500.0,0.00014432,2]
[338556268,1726732263430,-1243.1,0.00014432,2]
[338556269,1726732263440,-982.28,0.00014432,2]
[338556270,1726732263449,-500.0,0.00014432,2]
[338556271,1726732263458,-500.0,0.00014432,2]
[338556272,1726732263467,-862.5,0.00014432,2]
[338556273,1726732263477,-1402.12,0.00014432,2]
[338556274,1726732263486,-639.22,0.00014432,2]
[338556275,1726732263496,-557.76,0.00014432,2]
[338556276,1726732263505,-500.0,0.00014432,2]
[338556277,1726732263515,-717.81,0.00014432,2]
[338556278,1726732263524,-500.0,0.00014432,2]
[338556279,1726732263534,-500.0,0.00014432,2]
[338556280,1726732263547,-500.0,0.00014432,2]
[338556281,1726732263556,-500.0,0.00014432,2]
[338556282,1726732263565,-500.0,0.00014432,2]
[338556283,1726732263575,-586.57,0.00014432,2]
[338556284,1726732263584,-756.99,0.00014432,2]
[338556285,1726732263593,-500.0,0.00014432,2]
[338556286,1726732263603,-210.02454401,0.00014432,2]
[338556287,1726732263613,-500.0,0.00014432,2]
[338556288,1726732263622,-906.36,0.00014432,2]
[338556289,1726732263631,-1240.18,0.00014432,2]
[338556290,1726732263641,-672.73,0.00014432,2]
[338556291,1726732263651,-500.0,0.00014432,2]
[338556292,1726732263661,-545.89,0.00014432,2]
[338556293,1726732263671,-500.0,0.00014432,2]
[338556294,1726732263681,-500.0,0.00014432,2]
[338556295,1726732263690,-500.0,0.00014432,2]
[338556296,1726732263700,-500.0,0.00014432,2]
[338556297,1726732263710,-728.38,0.00014432,2]
[338556298,1726732263719,-500.0,0.00014432,2]
[338556299,1726732263728,-500.0,0.00014432,2]
[338556300,1726732263738,-658.72,0.00014432,2]
[338556301,1726732263748,-519.0,0.00014432,2]
[338556302,1726732263758,-778.27,0.00014432,2]
[338556303,1726732263768,-500.0,0.00014432,2]
[338556304,1726732263778,-500.0,0.00014432,2]
[338556305,1726732263788,-500.0,0.00014432,2]
[338556306,1726732263801,-500.0,0.00014432,2]
[338556307,1726732263818,-620.70444647,0.00014432,2]
[338556308,1726732263828,-1008.59,0.00014432,2]
[338556309,1726732263840,-500.0,0.00014432,2]
[338556310,1726732263850,-718.9,0.00014432,2]
[338556311,1726732263860,-500.0,0.00014432,2]
[338556312,1726732263869,-4085.3,0.00014432,2]
[338556313,1726732263879,-500.0,0.00014432,2]
[338556314,1726732263888,-500.0,0.00014432,2]
[338556315,1726732263898,-584.37,0.00014432,2]
[338556316,1726732263907,-500.0,0.00014432,2]
[338556317,1726732263918,-500.0,0.00014432,2]
[338556318,1726732263929,-500.0,0.00014432,2]
[338556319,1726732263939,-500.0,0.00014432,2]
[338556320,1726732263948,-500.0,0.00014432,2]
[338556321,1726732263958,-2428.34,0.00014432,2]
[338556322,1726732263967,-500.0,0.00014432,2]
[338556323,1726732263977,-547.42,0.00014432,2]
[338556324,1726732263990,-723.1,0.00014432,2]
[338556325,1726732264000,-517.64,0.00014432,2]
[338556326,1726732264010,-694.44,0.00014432,2]
[338556327,1726732264020,-6022.09,0.00014432,2]
[338556328,1726732264030,-784.32,0.00014432,2]
[338556329,1726732264040,-1042.29,0.00014432,2]
[338556330,1726732264061,-500.0,0.00014432,2]
[338556331,1726732264071,-500.0,0.00014432,2]
[338556332,1726732264081,-512.83262011,0.00014432,2]
[338556333,1726732264091,-870.34,0.00014432,2]
[338556334,1726732264100,-842.63,0.00014432,2]
[338556335,1726732264111,-502.74,0.00014432,2]
[338556336,1726732264121,-500.0,0.00014432,2]
[338556337,1726732264131,-599.18,0.00014432,2]
[338556338,1726732264141,-1280.12,0.00014432,2]
[338556339,1726732264154,-500.0,0.00014432,2]
[338556340,1726732264163,-500.0,0.00014432,2]
[338556341,1726732264173,-1131.1,0.00014432,2]
[338556342,1726732264183,-1402.14,0.00014432,2]
[338556343,1726732264193,-1347.02,0.00014432,2]
[338556344,1726732264204,-500.0,0.00014432,2]
[338556345,1726732264214,-628.39,0.00014432,2]
[338556346,1726732264225,-907.55,0.00014432,2]
[338556347,1726732264235,-500.0,0.00014432,2]
[338556348,1726732264245,-1233.42,0.00014432,2]
[338556349,1726732264255,-500.0,0.00014432,2]
[338556350,1726732264265,-619.95,0.00014432,2]
[338556351,1726732264275,-500.0,0.00014432,2]
[338556352,1726732264284,-500.0,0.00014432,2]
[338556353,1726732264296,-1504.17,0.00014432,2]
[338556354,1726732264305,-374.20746025,0.00014432,2]
[338556355,1726732264315,-500.0,0.00014432,2]
[338556356,1726732264325,-1372.29,0.00014432,2]
[338556357,1726732264334,-3332.6,0.00014432,2]
[338556358,1726732264344,-1755.32,0.00014432,2]
[338556359,1726732264354,-500.0,0.00014432,2]
[338556360,1726732264364,-2237.52,0.00014432,2]
[338556361,1726732264374,-500.0,0.00014432,2]
[338556362,1726732264384,-500.0,0.00014432,2]
[338556363,1726732264393,-500.0,0.00014432,2]
[338556364,1726732264403,-500.0,0.00014432,2]
[338556365,1726732264413,-278.76221966,0.00014432,2]
[338556366,1726732264422,-2058.1,0.00014432,2]